bitfinex-derivatives/quotes_BTCF0:USTF0_20250416
["timestamp","ask_amount","ask_price","bid_price","bid_amount"]
[1744819260638,0.4445,84996.0,84995.0,0.1176633]
[1744819261030,0.4445,84996.0,84995.0,0.2841633]
[1744819261429,0.562162,84996.0,84995.0,0.1176633]
[1744819262335,0.1765027,84992.0,84991.0,0.0588337]
[1744819262639,0.1176813,84982.0,84981.0,0.00017653]
[1744819262936,0.17654,84974.0,84973.0,0.0588469]
[1744819263139,0.53734,84974.0,84973.0,0.0988469]
[1744819264230,0.54900253,84974.0,84973.0,0.0988469]
[1744819264538,0.54900253,84974.0,84973.0,0.1576938]
[1744819265239,0.54900253,84974.0,84973.0,0.1606938]
[1744819266037,0.54900253,84974.0,84973.0,0.1666938]
[1744819266232,0.54900253,84974.0,84973.0,0.1636938]
[1744819267230,0.54900253,84974.0,84973.0,0.046]
[1744819267542,0.1177201,84954.0,84953.0,0.06392229]
[1744819267730,0.1177201,84954.0,84953.0,0.06506159]
[1744819267931,0.1177201,84954.0,84939.0,0.00176597]
[1744819267932,0.1177395,84940.0,84939.0,0.00176597]
[1744819268132,0.1177377,84942.0,84941.0,0.1177368]
[1744819268343,0.1177377,84942.0,84941.0,0.1777368]
[1744819268730,0.1177377,84942.0,84941.0,0.06]
[1744819268940,0.49002047,84942.0,84941.0,0.05]
[1744819269532,0.49002047,84942.0,84941.0,0.056]
[1744819269738,0.0588683,84943.0,84942.0,0.1177368]
[1744819270037,0.0588683,84943.0,84942.0,0.1277368]
[1744819271246,0.0588683,84943.0,84942.0,0.1297368]
[1744819271741,0.0588683,84943.0,84942.0,0.1317368]
[1744819272544,0.0588683,84943.0,84942.0,0.1297368]
[1744819272842,0.0588683,84943.0,84942.0,0.01]
[1744819273033,0.0588683,84943.0,84942.0,0.011]
[1744819273633,0.1177478,84934.0,84927.0,0.00506314]
[1744819273837,0.4785478,84934.0,84933.0,0.09017653]
[1744819274045,0.4785478,84934.0,84933.0,0.20792573]
[1744819274839,0.4785478,84934.0,84933.0,0.21192573]
[1744819275346,0.4785478,84934.0,84933.0,0.20792573]
[1744819275547,0.4785478,84934.0,84933.0,0.09017653]
[1744819277162,0.1177562,84928.0,84927.0,0.00506314]
[1744819277364,0.1177562,84928.0,84927.0,0.04506314]
[1744819277662,0.1177562,84928.0,84927.0,0.16282074]
[1744819278265,0.1177562,84928.0,84927.0,0.16382074]
[1744819278563,0.1177562,84928.0,84927.0,0.16582074]
[1744819279072,0.2028562,84928.0,84927.0,0.16582074]
[1744819280569,0.0851,84928.0,84927.0,0.16582074]
[1744819280770,0.3608,84932.0,84931.0,0.117752]
[1744819281069,0.3608,84932.0,84931.0,0.257752]
[1744819281272,0.0588719,84937.0,84936.0,0.1177451]
[1744819281572,0.0588719,84937.0,84936.0,0.1877451]
[1744819281869,0.0589519,84937.0,84936.0,0.1877451]
[1744819282171,0.0588719,84937.0,84936.0,0.1877451]
[1744819282474,0.0589519,84937.0,84936.0,0.1877451]
[1744819282668,0.0599519,84937.0,84936.0,0.1877451]
[1744819282871,0.2274519,84937.0,84936.0,0.1877451]
[1744819283166,0.16858,84937.0,84936.0,0.1877451]
[1744819283569,0.08688,84937.0,84936.0,0.1877451]
[1744819284365,0.08688,84937.0,84936.0,0.1777451]
[1744819284366,0.5654237,84937.0,84936.0,0.1777451]
[1744819284676,0.5644237,84937.0,84936.0,0.1777451]
[1744819284864,0.53008,84937.0,84936.0,0.1777451]
[1744819285164,0.53008,84937.0,84936.0,0.1787451]
[1744819285566,0.53008,84937.0,84936.0,0.1797451]
[1744819287266,0.44668,84937.0,84936.0,0.1797451]
[1744819287468,0.4466,84937.0,84936.0,0.1797451]
[1744819287669,0.44668,84937.0,84936.0,0.1787451]
[1744819287972,0.44668,84937.0,84936.0,0.1777451]
[1744819290564,0.44768,84937.0,84936.0,0.1777451]
[1744819293965,0.44768,84937.0,84936.0,0.2672451]
[1744819294782,0.44668,84937.0,84936.0,0.2672451]
[1744819295076,0.44768,84937.0,84936.0,0.2672451]
[1744819298372,0.44768,84937.0,84921.0,0.2355213]
[1744819298373,0.1766502,84922.0,84921.0,0.2355213]
[1744819298574,0.4196829,84922.0,84921.0,0.2455213]
[1744819298779,0.3608,84922.0,84921.0,0.2455213]
[1744819298980,0.00017653,84930.0,84921.0,0.2455213]
[1744819298981,0.00017653,84930.0,84929.0,0.1177548]
[1744819299278,0.00017653,84930.0,84929.0,0.1377548]
[1744819299477,0.00017653,84930.0,84929.0,0.2250548]
[1744819301175,0.00025653,84930.0,84929.0,0.3162548]
[1744819302082,0.36105653,84930.0,84929.0,0.3172548]
[1744819304081,0.00025653,84930.0,84929.0,0.3172548]
[1744819304275,0.11903034,84938.0,84937.0,0.1177437]
[1744819304580,0.3608,84950.0,84943.0,0.1177354]
[1744819304783,0.3608,84950.0,84943.0,1.8177354]
[1744819305172,0.3608,84950.0,84949.0,0.1177271]
[1744819305372,0.3608,84950.0,84949.0,0.1577271]
[1744819306182,0.3608,84950.0,84949.0,0.3312271]
[1744819307183,0.3608,84950.0,84949.0,0.3412271]
[1744819307382,0.3638,84950.0,84949.0,0.3412271]
[1744819307681,0.005,84956.0,84955.0,0.1177187]
[1744819307875,1e-07,84956.0,84955.0,0.1777187]
[1744819308081,1e-08,84956.0,84955.0,0.5385187]
[1744819308373,0.3608,84967.0,84966.0,0.1177035]
[1744819308573,0.3608,84967.0,84966.0,0.1377035]
[1744819308774,0.4423,84967.0,84966.0,0.1377035]
[1744819309175,0.4423,84967.0,84966.0,0.3100035]
[1744819310181,0.00014581,84976.0,84974.0,0.1176924]
[1744819310375,0.00014581,84976.0,84974.0,0.1376924]
[1744819310582,0.005,84982.0,84974.0,0.3099924]
[1744819310784,6e-08,84975.0,84974.0,0.3299924]
[1744819310982,0.005,84982.0,84981.0,0.1176827]
[1744819311187,0.005,84982.0,84981.0,0.2076827]
[1744819311374,0.005,84982.0,84981.0,1.7076827]
[1744819311785,0.1226813,84982.0,84981.0,0.3792827]
[1744819312093,0.1226813,84982.0,84979.0,0.0588421]
[1744819312094,0.1176841,84980.0,84979.0,0.0588421]
[1744819312675,0.2890841,84980.0,84979.0,0.0588421]
[1744819313688,0.2930841,84980.0,84979.0,0.0588421]
[1744819313877,0.1176952,84973.0,84972.0,0.1176884]
[1744819314082,0.4784952,84973.0,84972.0,0.1276884]
[1744819314282,0.6565952,84973.0,84972.0,0.1276884]
[1744819314878,0.6565952,84973.0,84972.0,0.01]
[1744819315089,0.2354126,84967.0,84966.0,0.1176963]
[1744819315280,0.5962126,84967.0,84966.0,0.1176963]
[1744819316079,0.1177049,84966.0,84965.0,0.1177036]
[1744819316281,0.3805049,84966.0,84965.0,0.1177036]
[1744819317488,0.2628,84966.0,84965.0,0.1177036]
[1744819317786,0.1827,84966.0,84965.0,0.1177036]
[1744819317979,0.09258,84966.0,84965.0,0.4017036]
[1744819318183,0.00208,84966.0,84965.0,0.4017036]
[1744819318590,0.082,84966.0,84965.0,0.4017036]
[1744819318886,0.17138,84966.0,84965.0,0.2261036]
[1744819319793,0.17538,84966.0,84965.0,0.2261036]
[1744819320288,0.08608,84966.0,84965.0,0.4037036]
[1744819320784,0.08208,84966.0,84965.0,0.4037036]
[1744819320979,0.1688,84966.0,84965.0,0.4057036]
[1744819321179,0.16888,84966.0,84965.0,0.4057036]
[1744819321382,0.16788,84966.0,84965.0,0.4057036]
[1744819321579,0.16788,84966.0,84965.0,0.4037036]
[1744819322288,0.16788,84966.0,84965.0,0.3156036]
[1744819322992,0.16988,84966.0,84965.0,0.3156036]
[1744819323496,0.2855835,84966.0,84965.0,0.1377036]
[1744819323700,0.2865835,84966.0,84965.0,0.1177036]
[1744819324492,0.16888,84966.0,84965.0,0.1177036]
[1744819324689,0.08308,84966.0,84965.0,0.2898036]
[1744819324995,0.083,84966.0,84965.0,0.2898036]
[1744819325196,0.08508,84966.0,84965.0,0.2898036]
[1744819325889,0.08408,84966.0,84965.0,0.2898036]
[1744819326088,0.08608,84966.0,84965.0,0.2898036]
[1744819326290,0.17518,84966.0,84965.0,0.2898036]
[1744819326696,0.17318,84966.0,84965.0,0.2898036]
[1744819326896,0.17118,84966.0,84965.0,0.2898036]
[1744819327199,0.17318,84966.0,84965.0,0.2898036]
[1744819327694,0.17118,84966.0,84965.0,0.2898036]
[1744819327897,0.53298,84966.0,84965.0,0.2898036]
[1744819328397,0.53298,84966.0,84965.0,0.1177036]
[1744819328595,0.6506835,84966.0,84965.0,0.1177036]
[1744819328796,0.53298,84966.0,84965.0,0.1177036]
[1744819329195,0.08308,84966.0,84965.0,0.2950036]
[1744819329400,0.3608,84974.0,84973.0,0.1176938]
[1744819329593,0.36094581,84974.0,84973.0,0.1176938]
[1744819329787,0.36094581,84974.0,84973.0,0.2845938]
[1744819330391,0.36194581,84974.0,84973.0,0.2026938]
[1744819330587,0.36194581,84974.0,84973.0,0.1176938]
[1744819330588,0.48063821,84974.0,84973.0,0.1176938]
[1744819330788,0.53724581,84974.0,84973.0,0.1176938]
[1744819330993,0.53234581,84974.0,84973.0,0.1176938]
[1744819331297,0.53234581,84974.0,84973.0,0.2004938]
[1744819331502,0.53234581,84974.0,84973.0,0.2823938]
[1744819331801,0.53134581,84974.0,84973.0,0.2004938]
[1744819333299,0.53234581,84974.0,84973.0,0.2004938]
[1744819334598,0.53134581,84974.0,84973.0,0.2004938]
[1744819335309,0.53134581,84974.0,84973.0,0.2898938]
[1744819336697,0.44764581,84974.0,84973.0,0.2898938]
[1744819337604,0.00114581,84974.0,84973.0,0.2998938]
[1744819337794,1e-08,84976.0,84975.0,0.117691]
[1744819337995,1e-08,84982.0,84981.0,0.1176827]
[1744819338194,1e-08,84982.0,84981.0,0.3798827]
[1744819338708,8.001e-05,84982.0,84981.0,0.3798827]
[1744819339504,1e-08,84982.0,84981.0,0.3798827]
[1744819339806,1e-08,84982.0,84981.0,0.3898827]
[1744819340104,0.3608,84984.0,84983.0,0.11768]
[1744819340307,0.3608,84984.0,84983.0,0.17768]
[1744819340605,0.3608,84984.0,84983.0,0.40758]
[1744819341103,0.3608,84991.0,84990.0,0.1765054]
[1744819341310,0.3608,84991.0,84990.0,0.1865054]
[1744819341898,0.3608,84991.0,84990.0,0.2902054]
[1744819343008,0.3618,84991.0,84990.0,0.2902054]
[1744819343313,0.36188,84991.0,84990.0,0.2902054]
[1744819343709,0.00108,84991.0,84990.0,0.2902054]
[1744819344909,0.001,84991.0,84990.0,0.2902054]
[1744819345110,0.00108,84991.0,84990.0,0.2902054]
[1744819346305,0.4795489,84991.0,84990.0,0.1765054]
[1744819346708,0.5320489,84991.0,84990.0,0.1765054]
[1744819346909,0.5843489,84991.0,84990.0,0.1765054]
[1744819348317,0.46668,84991.0,84990.0,0.1765054]
[1744819348812,0.5843489,84991.0,84990.0,0.1765054]
[1744819349915,0.46668,84991.0,84990.0,0.1765054]
[1744819350306,0.5843489,84991.0,84990.0,0.1765054]
[1744819351009,0.1176758,84986.0,84985.0,0.0588386]
[1744819351212,0.0588386,84985.0,84984.0,0.1176785]
[1744819351404,0.46,84985.0,84984.0,0.1176785]
[1744819351812,0.46,84985.0,84984.0,0.2172785]
[1744819352015,0.4117,84985.0,84984.0,0.2172785]
[1744819352614,0.41178,84985.0,84984.0,0.2172785]
[1744819353021,0.41178,84985.0,84984.0,0.2192785]
[1744819354806,0.41178,84985.0,84984.0,0.2182785]
[1744819355212,0.41178,84985.0,84984.0,0.2172785]
[1744819356115,0.36188,84985.0,84984.0,0.2272785]
[1744819356523,0.36088,84985.0,84984.0,0.2272785]
[1744819357217,8e-05,84985.0,84984.0,0.2272785]
[1744819358519,8e-05,84985.0,84984.0,0.2282785]
[1744819358717,8e-05,84985.0,84984.0,0.2292785]
[1744819359222,0.04868,84985.0,84984.0,0.2292785]
[1744819359522,0.04868,84985.0,84984.0,0.2282785]
[1744819359910,0.04868,84985.0,84984.0,0.2272785]
[1744819360512,0.04868,84985.0,84982.0,0.176519]
[1744819360716,0.1176869,84978.0,84977.0,0.0588437]
[1744819360923,0.4784869,84978.0,84977.0,0.0588437]
[1744819361116,0.5792869,84978.0,84974.0,0.0588459]
[1744819361313,0.1177114,84961.0,84960.0,0.1177084]
[1744819361512,0.117716,84957.0,84956.0,0.167116]
[1744819361716,0.1008,84960.0,84956.0,0.108258]
[1744819361921,0.1008,84960.0,84959.0,0.1177132]
[1744819362418,0.04898,84960.0,84959.0,0.1177132]
[1744819362614,0.04898,84960.0,84959.0,0.1277132]
[1744819362815,0.04998,84960.0,84959.0,0.1277132]
[1744819363618,0.0499,84960.0,84959.0,0.1277132]
[1744819363816,0.04998,84960.0,84959.0,0.1277132]
[1744819364016,0.05198,84960.0,84959.0,0.1277132]
[1744819364220,0.41278,84960.0,84959.0,0.1277132]
[1744819364426,0.46318,84960.0,84959.0,0.1277132]
[1744819364622,0.41078,84960.0,84959.0,0.1277132]
[1744819364825,0.00108,84960.0,84959.0,0.1277132]
[1744819365023,0.4088,84967.0,84966.0,0.1177035]
[1744819365215,0.4088,84967.0,84966.0,0.1277035]
[1744819365417,0.3608,84967.0,84966.0,0.1277035]
[1744819365618,0.36088,84967.0,84966.0,0.1677035]
[1744819365819,0.00010801,84977.0,84976.0,0.1176897]
[1744819366020,0.17960439,84986.0,84985.0,0.1176772]
[1744819366224,0.17960439,84986.0,84985.0,0.1276772]
[1744819367223,0.17968439,84986.0,84985.0,0.1276772]
[1744819367427,0.17960439,84986.0,84985.0,0.1276772]
[1744819367629,0.17968439,84986.0,84985.0,0.1276772]
[1744819367932,0.17960439,84986.0,84985.0,0.1276772]
[1744819368131,0.17968439,84986.0,84985.0,0.1276772]
[1744819368326,8e-05,84986.0,84985.0,0.1276772]
[1744819368630,8e-05,84986.0,84985.0,0.1286772]
[1744819369030,1e-07,84986.0,84985.0,0.1286772]
[1744819371026,1e-07,84986.0,84985.0,0.1276772]
[1744819371625,8.01e-05,84986.0,84985.0,0.1276772]
[1744819371825,8.01e-05,84986.0,84985.0,0.1286772]
[1744819372633,1e-07,84986.0,84985.0,0.1286772]
[1744819374024,1e-07,84986.0,84985.0,0.1386772]
[1744819374228,0.21963925,85000.0,84999.0,0.1176578]
[1744819374434,0.21963925,85000.0,84999.0,0.1276578]
[1744819375135,0.21971925,85000.0,84999.0,0.1276578]
[1744819375335,0.69917565,85000.0,84999.0,0.1176578]
[1744819375722,0.58151925,85000.0,84999.0,0.1176578]
[1744819376335,0.62831925,85000.0,84999.0,0.1176578]
[1744819376725,0.67801925,85000.0,84999.0,0.1176578]
[1744819376930,0.68001925,85000.0,84999.0,0.1176578]
[1744819377939,0.6780364,85000.0,84999.0,0.1176578]
[1744819378331,0.56038,85000.0,84999.0,0.1176578]
[1744819379530,0.56038,85000.0,84999.0,0.2085578]
[1744819379840,0.51358,85000.0,84999.0,0.2085578]
[1744819380029,0.5135,85000.0,84999.0,0.2085578]
[1744819380229,0.51358,85000.0,84999.0,0.2085578]
[1744819380437,0.51358,85000.0,84999.0,0.1176578]
[1744819381233,0.51358,85000.0,84999.0,0.1634578]
[1744819381539,0.51358,85000.0,84999.0,0.2072578]
[1744819381935,0.5135,85000.0,84999.0,0.2072578]
[1744819382237,0.51358,85000.0,84999.0,0.2072578]
[1744819382437,0.15278,85000.0,84999.0,0.2072578]
[1744819382637,0.51358,85000.0,84999.0,0.2072578]
[1744819383339,0.51358,85000.0,84999.0,0.1176578]
[1744819383935,0.6312364,85000.0,84999.0,0.1176578]
[1744819384331,0.6783364,85000.0,84999.0,0.1176578]
[1744819384531,0.56068,85000.0,84999.0,0.1176578]
[1744819386045,0.6783364,85000.0,84999.0,0.1176578]
[1744819387235,0.56068,85000.0,84999.0,0.1176578]
[1744819388145,0.6783364,85000.0,84999.0,0.1176578]
[1744819389342,0.1176661,84993.0,84992.0,0.1176666]
[1744819389541,0.1176852,84984.0,84983.0,0.1765147]
[1744819389734,0.4784852,84984.0,84983.0,0.1765147]
[1744819390441,0.3608,84984.0,84983.0,0.2353536]
[1744819390644,0.4784786,84984.0,84983.0,0.2353536]
[1744819391245,0.5737786,84984.0,84983.0,0.2373536]
[1744819391442,0.4561,84984.0,84983.0,0.2373536]
[1744819391939,0.36088,84984.0,84983.0,0.2373536]
[1744819392148,0.36088,84984.0,84983.0,0.2473536]
[1744819392335,0.3608,84984.0,84983.0,0.2473536]
[1744819392741,0.36188,84984.0,84983.0,0.2463536]
[1744819393443,0.36188,84984.0,84983.0,0.2453536]
[1744819393638,0.36188,84984.0,84983.0,0.2463536]
[1744819393840,0.41148,84984.0,84983.0,0.2463536]
[1744819394241,0.05068,84984.0,84983.0,0.2453536]
[1744819394442,0.41048,84984.0,84983.0,0.2463536]
[1744819394640,0.04968,84984.0,84983.0,0.2463536]
[1744819394835,0.36088,84984.0,84983.0,0.2453536]
[1744819395045,0.36088,84984.0,84983.0,0.2463536]
[1744819395338,8e-05,84984.0,84983.0,0.2463536]
[1744819395545,0.11963925,84985.0,84984.0,0.1176786]
[1744819395847,0.11963925,84985.0,84984.0,0.1376786]
[1744819396044,0.11963925,84985.0,84984.0,0.2768786]
[1744819397049,0.14952275,84992.0,84991.0,0.1176689]
[1744819397342,0.14952275,84992.0,84991.0,0.1476689]
[1744819397544,0.14952275,84992.0,84991.0,0.2404689]
[1744819397847,0.11984745,84992.0,84991.0,0.2404689]
[1744819398046,0.12084745,84992.0,84991.0,0.2404689]
[1744819399946,0.12184745,84992.0,84991.0,0.2404689]
[1744819400337,0.48264745,84992.0,84991.0,0.2404689]
[1744819401138,0.48264745,84992.0,84991.0,0.1476689]
[1744819401543,0.36288,84992.0,84991.0,0.1176689]
[1744819402247,0.36288,84992.0,84991.0,0.2068689]
[1744819403943,0.36288,84992.0,84991.0,0.1176689]
[1744819404450,0.36288,84992.0,84991.0,0.2032689]
[1744819406954,0.36288,84992.0,84991.0,0.2132689]
[1744819408949,0.14952275,84997.0,84996.0,0.117662]
[1744819408950,0.10349075,84997.0,84996.0,0.117662]
[1744819409157,0.10349075,84997.0,84996.0,0.157662]
[1744819409158,0.04714055,84997.0,84996.0,0.157662]
[1744819409350,0.00437285,84997.0,84996.0,0.177662]
[1744819409645,0.00445285,84997.0,84996.0,0.308262]
[1744819409860,0.0596235,85000.0,84999.0,0.1176578]
[1744819410056,0.0596235,85000.0,84999.0,0.1976578]
[1744819410353,0.0596235,85000.0,84999.0,0.2852578]
[1744819412663,0.64431969,85019.0,85010.0,0.1176426]
[1744819412664,0.54040439,85019.0,85010.0,0.1176426]
[1744819412855,0.54040439,85019.0,85018.0,0.1176315]
[1744819413054,0.54040439,85019.0,85018.0,0.1276315]
[1744819413255,0.54040439,85019.0,85018.0,0.2137315]
[1744819413553,0.54040439,85019.0,85018.0,0.2237315]
[1744819413753,0.00010801,85028.0,85027.0,0.1176191]
[1744819413955,0.3608,85029.0,85028.0,0.1176177]
[1744819414156,0.3608,85029.0,85028.0,0.1676177]
[1744819414459,0.20925602,85031.0,85030.0,0.1176149]
[1744819414665,0.12356892,85031.0,85030.0,0.1576149]
[1744819414859,0.005,85034.0,85033.0,0.1176108]
[1744819415058,0.26904345,85043.0,85033.0,0.1176108]
[1744819415059,0.00010801,85042.0,85041.0,0.1175997]
[1744819415261,0.26904345,85043.0,85042.0,0.1175983]
[1744819415465,0.26904345,85043.0,85042.0,0.1475983]
[1744819415756,0.3608,85044.0,85043.0,0.1175969]
[1744819415963,0.3608,85044.0,85043.0,0.1803969]
[1744819416161,0.28178832,85052.0,85051.0,0.1175859]
[1744819416355,0.28178832,85052.0,85051.0,0.1275859]
[1744819416556,0.23938031,85052.0,85051.0,0.1275859]
[1744819416855,0.23946031,85052.0,85051.0,0.1275859]
[1744819418456,0.28186031,85052.0,85051.0,0.1275859]
[1744819418858,0.28786031,85052.0,85051.0,0.1275859]
[1744819419466,0.28186031,85052.0,85051.0,0.1275859]
[1744819419763,0.28686031,85052.0,85051.0,0.1275859]
[1744819421670,0.04748,85052.0,85051.0,0.1275859]
[1744819421863,0.04748,85052.0,85051.0,0.1175859]
[1744819422160,0.04748,85052.0,85048.0,0.058795]
[1744819422161,0.1175914,85048.0,85047.0,0.1175907]
[1744819423053,0.0587949,85049.0,85047.0,0.1175907]
[1744819423054,0.143193,85051.0,85050.0,0.1175873]
[1744819423264,0.041,85051.0,85050.0,0.1175873]
[1744819423452,0.041,85051.0,85050.0,0.1375873]
[1744819423659,0.04108,85051.0,85050.0,0.1375873]
[1744819424060,0.04108,85051.0,85050.0,0.1175873]
[1744819424761,0.1586659,85051.0,85050.0,0.1175873]
[1744819424961,0.04108,85051.0,85050.0,0.1175873]
[1744819425368,0.04608,85051.0,85050.0,0.1175873]
[1744819425966,0.00508,85051.0,85050.0,0.1275873]
[1744819426171,0.00508,85051.0,85050.0,0.1699873]
[1744819426465,0.005,85051.0,85050.0,0.1699873]
[1744819426673,0.00508,85051.0,85050.0,0.1699873]
[1744819429269,0.00508,85051.0,85050.0,0.2151873]
[1744819429470,0.005,85051.0,85050.0,0.2151873]
[1744819429667,0.00508,85051.0,85050.0,0.2151873]
[1744819430568,0.00408,85051.0,85050.0,0.2151873]
[1744819430766,0.005,85060.0,85059.0,0.1175748]
[1744819430971,0.3608,85082.0,85081.0,0.1175444]
[1744819431271,0.36106573,85082.0,85081.0,0.1175444]
[1744819431457,0.3608,85082.0,85081.0,0.1175444]
[1744819432366,0.36088,85082.0,85081.0,0.1175444]
[1744819432572,0.37462869,85082.0,85081.0,0.1185444]
[1744819432763,8e-05,85082.0,85081.0,0.1185444]
[1744819432958,0.00019684,85090.0,85081.0,0.1185444]
[1744819432959,0.40376573,85091.0,85085.0,0.1175389]
[1744819433157,0.3608,85089.0,85085.0,0.1175389]
[1744819433569,0.05134,85086.0,85085.0,0.1175389]
[1744819434069,0.06520111,85086.0,85085.0,0.1175389]
[1744819434972,0.05134,85086.0,85085.0,0.1175389]
[1744819435675,0.09064,85086.0,85085.0,0.1175389]
[1744819436164,0.2081775,85086.0,85085.0,0.1175389]
[1744819436367,0.09064,85086.0,85085.0,0.1175389]
[1744819436770,0.1494094,85086.0,85083.0,0.1763101]
[1744819436971,0.1175403,85084.0,85083.0,0.1175403]
[1744819437474,0.1569403,85084.0,85083.0,0.1175403]
[1744819439471,0.1966403,85084.0,85083.0,0.1175403]
[1744819440071,0.9182403,85084.0,85083.0,0.1175403]
[1744819440471,0.9182403,85084.0,85083.0,0.0587701]
[1744819440672,0.9182403,85084.0,85074.0,0.0587759]
[1744819440673,0.1175541,85075.0,85074.0,0.0587759]
[1744819440877,0.4783541,85075.0,85074.0,0.0587759]
[1744819441171,0.5575541,85075.0,85074.0,0.0587759]
[1744819442679,0.5595541,85075.0,85074.0,0.0587759]
[1744819443277,0.442,85075.0,85074.0,0.0587759]
[1744819443671,0.5595527,85075.0,85074.0,0.0587759]
[1744819448189,0.1763532,85064.0,85063.0,0.1175642]
[1744819448485,0.0587917,85055.0,85054.0,0.1175779]
[1744819448681,0.4195917,85055.0,85054.0,0.1175779]
[1744819448874,0.4434,85055.0,85054.0,0.1175779]
[1744819449278,0.4016,85055.0,85054.0,0.2005779]
[1744819449478,0.36088,85055.0,85054.0,0.2005779]
[1744819449879,0.37497324,85055.0,85054.0,0.2005779]
[1744819450186,0.37497324,85055.0,85054.0,0.2015779]
[1744819450690,0.37497324,85055.0,85054.0,0.2025779]
[1744819450988,0.37489324,85055.0,85054.0,0.2025779]
[1744819451186,0.37497324,85055.0,85054.0,0.2025779]
[1744819451375,0.37497324,85055.0,85054.0,0.2015779]
[1744819451685,0.37497324,85055.0,85054.0,0.2005779]
[1744819453091,0.62505443,85055.0,85031.0,0.06386335]
[1744819453391,0.3608,85033.0,85032.0,0.1176121]
[1744819455697,0.3618,85033.0,85032.0,0.1176121]
[1744819455996,0.45256469,85033.0,85032.0,0.1176121]
[1744819456295,0.45256469,85033.0,85031.0,0.00505695]
[1744819456296,0.1176121,85032.0,85031.0,0.00505695]
[1744819456686,0.1997121,85032.0,85031.0,0.00505695]
[1744819456890,0.1997121,85032.0,85031.0,0.12267045]
[1744819457091,0.04,85032.0,85031.0,0.12267045]
[1744819457293,0.0001763,85041.0,85040.0,0.1176011]
[1744819457494,0.0001763,85041.0,85040.0,0.1276011]
[1744819457690,0.0002563,85041.0,85040.0,0.1276011]
[1744819457896,0.0001763,85041.0,85040.0,0.1276011]
[1744819458097,0.0002563,85041.0,85040.0,0.1276011]
[1744819458596,0.0002563,85041.0,85040.0,0.1286011]
[1744819458997,0.0002563,85041.0,85040.0,0.1186011]
[1744819459904,0.117856,85041.0,85040.0,0.1186011]
[1744819460205,0.157156,85041.0,85040.0,0.1186011]
[1744819460406,0.1764174,85034.0,85033.0,0.1176108]
[1744819460605,0.4196053,85034.0,85033.0,0.176416]
[1744819461298,0.5002053,85034.0,85033.0,0.176416]
[1744819461504,0.3608,85034.0,85033.0,0.187416]
[1744819461705,0.3608,85034.0,85033.0,0.188416]
[1744819462005,0.3608,85034.0,85033.0,0.271116]
[1744819462205,0.36188,85034.0,85033.0,0.270116]
[1744819462705,0.36088,85034.0,85033.0,0.270116]
[1744819462906,0.36188,85034.0,85033.0,0.270116]
[1744819463402,0.36288,85034.0,85033.0,0.269116]
[1744819464399,0.06,95000.0,85040.0,0.1176011]
[1744819464400,0.00014581,85050.0,85040.0,0.1176011]
[1744819464703,0.00014581,85050.0,85040.0,0.1276011]
[1744819464898,0.0425,85051.0,85040.0,0.1276011]
[1744819465099,0.0002563,85041.0,85040.0,0.2089011]
[1744819465505,0.0002563,85041.0,85040.0,0.1989011]
[1744819465702,0.0002563,85041.0,85040.0,0.2009011]
[1744819466801,0.0002563,85041.0,85040.0,0.2019011]
[1744819467404,0.0002563,85041.0,85040.0,0.2009011]
[1744819467603,0.0002563,85041.0,85040.0,0.1989011]
[1744819467799,0.0012563,85041.0,85040.0,0.1989011]
[1744819468408,0.0002563,85041.0,85040.0,0.1989011]
[1744819468613,0.0002563,85041.0,85040.0,0.2189011]
[1744819469007,0.0031563,85041.0,85040.0,0.2289011]
[1744819469506,0.0030763,85041.0,85040.0,0.2289011]
[1744819469705,0.0031563,85041.0,85040.0,0.2289011]
[1744819470709,0.0031563,85041.0,85040.0,0.2189011]
[1744819470910,0.0031563,85041.0,85040.0,0.2209011]
[1744819471109,0.0041563,85041.0,85040.0,0.2309011]
[1744819471509,0.0031563,85041.0,85040.0,0.2309011]
[1744819471711,0.0031563,85041.0,85040.0,0.2329011]
[1744819473010,0.0031563,85041.0,85040.0,0.2309011]
[1744819473218,0.0031563,85041.0,85040.0,0.1416011]
[1744819473401,0.0031563,85041.0,85040.0,0.1216011]
[1744819473402,0.120756,85041.0,85040.0,0.1216011]
[1744819473604,0.0031563,85041.0,85040.0,0.1216011]
[1744819473805,0.0031563,85041.0,85040.0,0.1196011]
[1744819474013,0.0031563,85041.0,85040.0,0.1206011]
[1744819474817,0.0031563,85041.0,85040.0,0.2483011]
[1744819475018,0.0030763,85041.0,85040.0,0.2483011]
[1744819475222,0.0031563,85041.0,85040.0,0.2483011]
[1744819475403,0.0041563,85041.0,85040.0,0.2463011]
[1744819476011,0.0031563,85041.0,85040.0,0.2483011]
[1744819476618,0.0031563,85041.0,85040.0,0.2473011]
[1744819477212,0.0031563,85041.0,85040.0,0.2483011]
[1744819478015,0.0031563,85041.0,85040.0,0.1286011]
[1744819478217,0.0031563,85041.0,85040.0,0.1306011]
[1744819478414,0.0031563,85041.0,85040.0,0.2124011]
[1744819479217,0.0031563,85041.0,85040.0,0.1286011]
[1744819479516,0.0031563,85041.0,85040.0,0.1176011]
[1744819479727,0.0031563,85041.0,85040.0,0.1186011]
[1744819480021,0.120756,85041.0,85040.0,0.1196011]
[1744819480522,0.202556,85041.0,85040.0,0.1196011]
[1744819481417,0.203556,85041.0,85040.0,0.1186011]
[1744819481914,0.202556,85041.0,85040.0,0.1186011]
[1744819482118,0.203556,85041.0,85040.0,0.1186011]
[1744819482618,0.203556,85041.0,85040.0,0.1176011]
[1744819483128,0.0859563,85041.0,85040.0,0.1176011]
[1744819484228,0.203556,85041.0,85040.0,0.1176011]
[1744819485426,0.202556,85041.0,85040.0,0.1176011]
[1744819485733,0.0859563,85041.0,85040.0,0.1176011]
[1744819487923,0.0858763,85041.0,85040.0,0.1965011]
[1744819488331,0.0859563,85041.0,85040.0,0.1965011]
[1744819488625,0.0859563,85041.0,85040.0,0.1176011]
[1744819488826,0.203556,85041.0,85040.0,0.1176011]
[1744819489025,0.0859563,85041.0,85040.0,0.1176011]
[1744819492935,0.0858763,85041.0,85040.0,0.1176011]
[1744819493128,0.0858763,85041.0,85040.0,0.1579011]
[1744819493328,0.0858763,85041.0,85040.0,0.1985011]
[1744819494531,0.0848763,85041.0,85040.0,0.1582011]
[1744819495039,0.0849563,85041.0,85040.0,0.1582011]
[1744819495724,0.0859563,85041.0,85040.0,0.1582011]
[1744819497132,0.0849563,85041.0,85040.0,0.1582011]
[1744819497441,0.0859563,85041.0,85040.0,0.1582011]
[1744819497740,0.0849563,85041.0,85040.0,0.1582011]
[1744819497932,0.0859563,85041.0,85040.0,0.1582011]
[1744819498132,0.0859563,85041.0,85040.0,0.1970011]
[1744819499239,0.0453563,85041.0,85040.0,0.1970011]
[1744819499442,0.0452763,85041.0,85040.0,0.1970011]